Cogmind - Beta 14 @@@ ROGUE MODE // 2024.11.14 @ 09:47:54 Player: MarKhan Result: Destroyed by X-67 Chaingunner with Heavy Machine Gun Performance ------------- Evolutions (3) 1500 Regions Visited (7) 1400 Robots Destroyed (61) 305 Value Destroyed (1310) 1310 Prototype IDs (4) 80 Alien Tech Used (0) 0 Bonus (625) 625 TOTAL SCORE: 5220 Bonus ------- High Alert Combat Kills 48 Follower Combat Kills 77 Entered DSFs 500 Cogmind --------- Core Integrity 0/700 Matter 239/300 Energy 100/100 System Corruption 0% Temperature Cool (0) Movement Core (100) Ox1 Location -7/DSF Parts ------- > --- POWER (1) -------- (None) > --- PROPULSION (2) --- (None) > --- UTILITY (8) ------ Advanced Visual Processing Unit Target Analyzer Core Analyzer Core Analyzer Improved Utility Shielding Authchip [Device] Authchip [Armor] > --- WEAPON (2) ------- Axe > --- INVENTORY (5) ---- Improved Utility Shielding Rocket Launcher Rocket Launcher Rocket Launcher Axe Peak State ------------ > --- POWER ------------ (None) > --- PROPULSION ------- (None) > --- UTILITY ---------- Advanced Visual Processing Unit Target Analyzer Core Analyzer Core Analyzer Improved Utility Shielding Authchip [Device] Authchip [Armor] Authchip [Armor] > --- WEAPON ----------- Axe Axe > --- INVENTORY -------- Improved Utility Shielding Rocket Launcher Rocket Launcher Rocket Launcher Axe [Rating: 36] Favorites ----------- Power Light Ion Engine Engine Light Ion Engine Propulsion None Utility Core Analyzer Device Weight Redist. System Processor Core Analyzer Hackware System Shield Protection Improved Utility Shielding Weapon Scythe Energy Gun Spread Laser Energy Cannon Advanced Beam Cannon Ballistic Gun Assault Rifle Launcher Grenade Launcher Impact Weapon Power Maul Slashing Weapon Scythe Build | -11 -10 -10 -10 -9 -8 -7 -7 ------- Run | Yrd Mat Min Exi Min Mat Fac DSF Slots Evolved 6 | . . . . . 4 2 . Power . | . . . . . . . . Propulsion . | . . . . . . . . Utility 6 | . . . . . 4 2 . Weapon . | . . . . . . . . Parts Attached 71 | 3 20 6 . . 27 6 9 Power 5 | . . 1 . . 4 . . Engine 5 | . . 1 . . 4 . . Core . | . . . . . . . . Reactor . | . . . . . . . . Propulsion . | . . . . . . . . Treads . | . . . . . . . . Leg . | . . . . . . . . Wheel . | . . . . . . . . Hover . | . . . . . . . . Flight . | . . . . . . . . Utility 27 | 1 4 3 . . 13 3 3 Device 8 | 1 2 2 . . 3 . . Storage . | . . . . . . . . Processor 13 | . 2 1 . . 9 1 . Hackware 4 | . . . . . 1 . 3 Protection 2 | . . . . . . 2 . Artifact . | . . . . . . . . Weapon 39 | 2 16 2 . . 10 3 6 Energy Gun 3 | 1 2 . . . . . . Energy Cannon 1 | . . . . . 1 . . Ballistic Gun 10 | 1 9 . . . . . . Ballistic Cannon . | . . . . . . . . Launcher 7 | . 5 . . . 1 . 1 Special Weapon . | . . . . . . . . Impact Weapon 1 | . . . . . 1 . . Slashing Weapon 17 | . . 2 . . 7 3 5 Piercing Weapon . | . . . . . . . . Special Melee Weapon . | . . . . . . . . Unidentified Prototypes 2 | . . . . . 2 . . Corrupted Parts 2 | . . 2 . . . . . System Corruption 2 | . . 2 . . . . . Parts Lost 12 | . 1 . . . 4 . 7 Power 1 | . . . . . 1 . . Propulsion . | . . . . . . . . Utility 6 | . . . . . 3 . 3 Weapon 5 | . 1 . . . . . 4 Highest Loss Streak 2 | . 1 . . . 2 . 2 To Critical Strikes . | . . . . . . . . Average Slot Usage (%) 63 | . 37 69 71 71 73 73 64 Engine 5 | . . 13 14 14 4 . . Device 8 | . 13 14 14 14 4 . . Processor 25 | . 8 14 14 14 40 38 30 Hackware 3 | . . . . . 6 7 8 Protection 1 | . . . . . . 12 11 Ballistic Gun 2 | . 11 1 . . . . . Slashing Weapon 15 | . . 25 28 28 16 15 12 Peak Build Rating 36 | 3 7 12 12 12 29 34 36 Average Rating 17 | 1 3 11 12 12 25 32 29 On Entrance 12 | . 2 4 12 12 12 26 34 Naked Turns 1 | . 1 . . . . . . Heaviest Build 9 | 3 9 8 8 8 9 9 9 Greatest Support 9 | 3 3 9 9 9 9 3 3 Greatest Overweight (x) 2 | . 2 2 . . 2 2 2 Average Overweight (x) . | . . . . . . 1 1 Largest Inventory Capacity 5 | 5 5 5 5 5 5 5 5 Average Capacity 5 | 5 5 5 5 5 5 5 5 Most Carried 5 | 4 5 5 5 5 5 5 5 Average Carried 4 | 1 4 4 5 5 4 5 4 Final Capacity 5 | 5 5 5 5 5 5 5 5 Final Carried 5 | 4 5 5 5 5 5 5 5 Class Distribution -------------------- 67% | Mutant 31% | Gladiator Dominant Class ---------------- Mutant | -10/Materials Mutant | -10/Mines Gladiator | -10/Exiles Gladiator | -9/Mines Mutant | -8/Materials Mutant | -7/Factory Mutant | -7/DSF Resources | -11 -10 -10 -10 -9 -8 -7 -7 ----------- Run | Yrd Mat Min Exi Min Mat Fac DSF Matter Collected 1227 | 235 299 168 19 . 420 . 86 Remotely . | . . . . . . . . Salvage Created 1768 | 117 331 243 . 27 957 . 93 Parts 121 | 5 31 17 . 4 58 . 6 Haulers Intercepted 4 | . 1 . . . 3 . . Recyclers Shooed 1 | . . . . . 1 . . Parts Field Recycled . | . . . . . . . . Retrieved Matter . | . . . . . . . . Parts Self-Destructed . | . . . . . . . . Prevented . | . . . . . . . . Kills | -11 -10 -10 -10 -9 -8 -7 -7 ------- Run | Yrd Mat Min Exi Min Mat Fac DSF Combat Hostiles Destroyed 36 | . 10 7 . 2 13 . 4 Melee 23 | . . 7 . 2 13 . 1 Guns 5 | . 5 . . . . . . AOE 8 | . 5 . . . . . 3 Classes Destroyed 12 | 2 6 . . . 3 . 1 Worker 3 | . . . . . 3 . . Builder 3 | . 1 . . . 2 . . Tunneler 3 | 2 . . . . 1 . . Hauler 4 | . 1 . . . 3 . . Recycler 4 | 1 1 . . . 2 . . Operator 2 | . 1 . . . 1 . . Watcher 6 | . 3 . . . 3 . . Swarmer 17 | . 6 2 . 2 4 . 3 Grunt 16 | . 4 5 . . 7 . . Duelist 1 | . . . . . 1 . . Sentry 1 | . . . . . 1 . . Specialist 1 | . . . . . . . 1 Best Kill Streak 5 | 3 5 3 . 2 5 . 3 Combat Bots Only 4 | . 3 3 . 2 4 . 3 Max Kills in Single Turn 2 | 1 2 1 . 1 2 . 2 Gunslinging . | . . . . . . . . Exploded 2 | . 2 . . . . . 2 Melee 1 | . . 1 . 1 1 . 1 Uniques/NPCs Destroyed . | . . . . . . . . Combat | -11 -10 -10 -10 -9 -8 -7 -7 -------- Run | Yrd Mat Min Exi Min Mat Fac DSF Hostile Shots Fired 127 | . 22 19 . 3 44 . 39 Missed 36 | . 5 7 . . 16 . 8 Damage Taken 1914 | . 300 192 . 22 383 . 1017 Core 1097 | . 84 123 . 13 174 . 703 Absorbed by Shields . | . . . . . . . . Redirected to Shielding 70 | . . . . . . . 70 Regen/Repaired (Parts) 125 | . . . . . 125 . . Core Remaining (%) 60 | 100 . . . 12 68 . . Volleys Fired 78 | 6 54 . . . 16 . 2 Largest 2 | 2 2 . . . 1 . 1 Hottest 68 | 60 66 . . . 68 . 33 Shots Fired 92 | 12 62 . . . 16 . 2 Gun 65 | 12 53 . . . . . . Cannon 1 | . . . . . 1 . . Launcher 26 | . 9 . . . 15 . 2 Special . | . . . . . . . . Kinetic 43 | 6 37 . . . . . . Thermal 23 | 6 16 . . . 1 . . Explosive 26 | . 9 . . . 15 . 2 Electromagnetic . | . . . . . . . . Robot Hit Streak 7 | 6 7 . . . . . 2 Robot Miss Streak 3 | 2 3 . . . 1 . . Penetration Max . | . . . . . . . . Secondary Targets . | . . . . . . . . Shots Hit Robots 115 | 7 39 13 . 2 50 . 4 Core Hits 83 | 4 38 6 . 2 27 . 6 Critical Kills . | . . . . . . . . Critical Parts Destroyed . | . . . . . . . . Critical Strikes 5 | . . 2 . . 3 . . Sever 5 | . . 2 . . 3 . . Melee Attacks 108 | . . 19 4 3 80 . 2 Impact . | . . . . . . . . Slashing 108 | . . 19 4 3 80 . 2 Piercing . | . . . . . . . . Sneak Attacks 18 | . . 3 . 1 13 . 1 Combat Hostiles 5 | . . 3 . 1 . . 1 Follow-up Attacks 6 | . . 3 . . 3 . . Damage Inflicted 4115 | 82 1006 516 . 117 2148 . 246 Guns 539 | 82 457 . . . . . . Cannons . | . . . . . . . . Explosions 777 | . 549 . . . 80 . 148 Melee 2799 | . . 516 . 117 2068 . 98 Ramming . | . . . . . . . . Kinetic 256 | 28 228 . . . . . . Thermal 283 | 54 229 . . . . . . Explosive 777 | . 549 . . . 80 . 148 Electromagnetic . | . . . . . . . . Impact . | . . . . . . . . Slashing 2799 | . . 516 . 117 2068 . 98 Piercing . | . . . . . . . . Highest Corruption 2 | . . 2 2 2 . . . Average Corruption 1 | . . 1 2 2 . . . Corruption Purged . | . . . . . . . . Corruption Blocked . | . . . . . . . . Effects 8 | . . 4 3 1 . . . Message Errors 4 | . . 3 1 . . . . Matter Fused 1 | . . . 1 . . . . Data Loss (minor) 2 | . . . 1 1 . . . Data Loss (major) 1 | . . 1 . . . . . Overload Shots . | . . . . . . . . Overflow Damage 191 | . 33 43 . . 115 . . Projectiles . | . . . . . . . . Explosions 33 | . 33 . . . . . . Melee 158 | . . 43 . . 115 . . Knockbacks . | . . . . . . . . Impact . | . . . . . . . . Kinetic . | . . . . . . . . Secondary . | . . . . . . . . Self-Inflicted Damage 165 | . 131 . . . 34 . . Shots 3 | . 2 . . . 1 . . Rammed . | . . . . . . . . Targets Rammed . | . . . . . . . . Kicked . | . . . . . . . . Crushed . | . . . . . . . . Highest Temperature 156 | 15 156 . . . 16 . . Average Temperature 49 | 10 54 . . . 12 . . Received Heat Transfer 246 | . 66 99 . . 81 . . Siege Activations . | . . . . . . . . Robots Corrupted . | . . . . . . . . Combat Hostiles . | . . . . . . . . Parts Fried . | . . . . . . . . Impact Corruptions . | . . . . . . . . Robots Melted . | . . . . . . . . Combat Hostiles . | . . . . . . . . Parts Melted 1 | . . . . . 1 . . Heat Transferred 415 | 125 290 . . . . . . Parts Sabotaged . | . . . . . . . . Parts Stolen . | . . . . . . . . Parts Stripped . | . . . . . . . . Power Chain Reactions . | . . . . . . . . Alert | -11 -10 -10 -10 -9 -8 -7 -7 ------- Run | Yrd Mat Min Exi Min Mat Fac DSF Peak Influence 502 | 15 502 350 . 65 461 156 222 Initial 171 | . 9 171 . . 25 156 109 Average 291 | 5 327 279 . 59 336 156 133 Maximum Alert Level 2 | . 2 1 . . 2 . 1 Low Security (%) 22 | 100 9 22 . 100 5 100 80 Level 1 55 | . 52 77 . . 64 . 19 Level 2 22 | . 37 . . . 30 . . Level 3 . | . . . . . . . . Level 4 . | . . . . . . . . Level 5 . | . . . . . . . . High Security . | . . . . . . . . Max Security . | . . . . . . . . Squads Dispatched 4 | . . 1 . . 2 . 1 Investigation 2 | . . 1 . . 1 . . Extermination . | . . . . . . . . Reinforcement 2 | . . . . . 1 . 1 Assault . | . . . . . . . . Garrison . | . . . . . . . . Intercept . | . . . . . . . . Searches Triggered . | . . . . . . . . Construction Impeded 1 | . . . . . 1 . . Haulers Reinforced . | . . . . . . . . Active Scanning Responses . | . . . . . . . . Cargo Convoy Interrupts . | . . . . . . . . Stealth | -11 -10 -10 -10 -9 -8 -7 -7 --------- Run | Yrd Mat Min Exi Min Mat Fac DSF Distress Signals 1 | . . . . . 1 . . Communications Jammed . | . . . . . . . . Distress Signals . | . . . . . . . . Times Spotted 60 | . 20 9 . 2 20 . 9 Peak Tracking Total 6 | . 3 5 . 2 6 . 4 Tactical Retreats 5 | . 1 . . . 1 . 3 Traps | -11 -10 -10 -10 -9 -8 -7 -7 ------- Run | Yrd Mat Min Exi Min Mat Fac DSF Traps Triggered 4 | . 2 . . . . 1 1 Indirectly . | . . . . . . . . Trap Hack Attempts . | . . . . . . . . Triggered . | . . . . . . . . Disarmed 1 | . 1 . . . . . . Reprogrammed . | . . . . . . . . Reused . | . . . . . . . . Traps Extracted . | . . . . . . . . Installed . | . . . . . . . . Triggered . | . . . . . . . . Machines | -11 -10 -10 -10 -9 -8 -7 -7 ---------- Run | Yrd Mat Min Exi Min Mat Fac DSF Machines Disabled 4 | . 3 . . . . . 1 Max in Single Turn 2 | . 2 . . . . . 1 Garrison Access 1 | . . . . . 1 . . Machines Repaired . | . . . . . . . . Machines Dismantled . | . . . . . . . . Machines Sabotaged . | . . . . . . . . Overloaded Fab Kills . | . . . . . . . . Hacking | -11 -10 -10 -10 -9 -8 -7 -7 --------- Run | Yrd Mat Min Exi Min Mat Fac DSF Machines Accessed 25 | . 9 3 4 . 7 2 . Terminals 13 | . 8 . . . 4 1 . Fabricators 1 | . . . . . . 1 . Repair Stations 1 | . . . . . 1 . . Recycling Units 1 | . 1 . . . . . . Scanalyzers 1 | . . . . . 1 . . Garrison Access 1 | . . . . . 1 . . Total Hacks 92 | . 36 3 4 . 44 5 . Successful 62 | . 19 3 4 . 35 1 . Failed 30 | . 17 . . . 9 4 . Catastrophic 1 | . 1 . . . . . . Database Lockouts . | . . . . . . . . Manual 44 | . 29 . . . 15 . . Terminals 51 | . 32 . . . 15 4 . Fabricators 1 | . . . . . . 1 . Repair Stations 12 | . . . . . 12 . . Recycling Units 4 | . 4 . . . . . . Scanalyzers 14 | . . . . . 14 . . Garrison Access 3 | . . . . . 3 . . Terminal Hacks 12 | . 4 3 4 . . 1 . Record 4 | . . . 4 . . . . Part Schematic 1 | . 1 . . . . . . Prototype ID Bank 1 | . 1 . . . . . . Open Door 3 | . . 3 . . . . . Open DSF 1 | . . . . . . 1 . Terminal Index 1 | . 1 . . . . . . Disarm Traps 1 | . 1 . . . . . . Fabricator Hacks . | . . . . . . . . Repair Station Hacks 10 | . . . . . 10 . . Scan Component 5 | . . . . . 5 . . Repair 5 | . . . . . 5 . . Recycling Unit Hacks . | . . . . . . . . Scanalyzer 14 | . . . . . 14 . . Insert Component 7 | . . . . . 7 . . Analyze 7 | . . . . . 7 . . Garrison Access Hacks . | . . . . . . . . Unauthorized Hacks 26 | . 15 . . . 11 . . Terminals 22 | . 12 . . . 10 . . Track 1 | . . . . . 1 . . Assimilate 1 | . 1 . . . . . . Botnet 6 | . 3 . . . 3 . . Disrupt 1 | . . . . . 1 . . Operators 2 | . 1 . . . 1 . . Skim 11 | . 7 . . . 4 . . Fabricators . | . . . . . . . . Repair Stations . | . . . . . . . . Recycling Units 3 | . 3 . . . . . . Reject 1 | . 1 . . . . . . Recyclers 1 | . 1 . . . . . . Mask 1 | . 1 . . . . . . Scanalyzers . | . . . . . . . . Garrison Access 1 | . . . . . 1 . . Jam 1 | . . . . . 1 . . Data Cores Recovered 2 | . 1 . . . 1 . . Used 1 | . . . . . 1 . . Hacking Detections 17 | . 9 . . . 7 1 . Full Trace Events 1 | . 1 . . . . . . Feedback Events . | . . . . . . . . Feedback Blocked . | . . . . . . . . Robot Schematics Acquired . | . . . . . . . . Robots Built . | . . . . . . . . Authchips . | . . . . . . . . Time . | . . . . . . . . Total Robot Build Rating . | . . . . . . . . Part Schematics Acquired 8 | . 1 . . . 7 . . Parts Built . | . . . . . . . . Authchips . | . . . . . . . . Time . | . . . . . . . . Total Part Build Rating . | . . . . . . . . Parts Repaired 5 | . . . . . 5 . . Time 178 | . . . . . 178 . . Parts Recycled . | . . . . . . . . Recycled Matter . | . . . . . . . . Retrieved Matter . | . . . . . . . . Retrieved Components . | . . . . . . . . Parts Scanalyzed 7 | . . . . . 7 . . Part Schematics Acquired 7 | . . . . . 7 . . Parts Damaged . | . . . . . . . . Bothacking | -11 -10 -10 -10 -9 -8 -7 -7 ------------ Run | Yrd Mat Min Exi Min Mat Fac DSF Used RIF Installer . | . . . . . . . . Robots Hacked . | . . . . . . . . Non-combat . | . . . . . . . . Combat . | . . . . . . . . Robot Hacks Applied . | . . . . . . . . Relay Couplers Released . | . . . . . . . . Fabnet Peak Effective % . | . . . . . . . . Robots Rewired . | . . . . . . . . Allies Hacked . | . . . . . . . . Hacks Repelled . | . . . . . . . . Allies | -11 -10 -10 -10 -9 -8 -7 -7 -------- Run | Yrd Mat Min Exi Min Mat Fac DSF Total Allies 5 | . 1 3 . 1 . . . Largest Group 4 | . 1 4 1 2 2 . . Highest-Rated Group 50 | . 10 50 10 41 41 . . Highest-Rated Ally 31 | . 10 16 10 31 31 . . Total Orders 7 | . 2 4 . . 1 . . STAY 4 | . 1 2 . . 1 . . FOLLOW 3 | . 1 2 . . . . . Ally Attacks 23 | . . 13 . . 10 . . Total Damage 336 | . . 167 . . 169 . . Kills 4 | . . 3 . . 1 . . Allies Corrupted . | . . . . . . . . Allies Melted . | . . . . . . . . Intel | -11 -10 -10 -10 -9 -8 -7 -7 ------- Run | Yrd Mat Min Exi Min Mat Fac DSF Robot Analysis Total . | . . . . . . . . Derelict Logs Recovered 1 | . . 1 . . . . . Drone Launches . | . . . . . . . . Drone Recoveries . | . . . . . . . . Exploration | -11 -10 -10 -10 -9 -8 -7 -7 ------------- Run | Yrd Mat Min Exi Min Mat Fac DSF Turns Passed 2899 | 59 635 391 274 25 1192 102 221 Spaces Moved 3102 | 64 816 566 522 24 924 67 119 Core 3102 | 64 816 566 522 24 924 67 119 Treads . | . . . . . . . . Legs . | . . . . . . . . Wheels . | . . . . . . . . Hover . | . . . . . . . . Flight . | . . . . . . . . Fastest Speed 50 | 50 50 50 50 50 50 100 50 Average Speed 67 | 50 57 52 50 50 82 139 130 Slowest Speed 150 | 50 150 150 50 50 150 150 150 Overloaded Moves . | . . . . . . . . Propulsion Burnouts . | . . . . . . . . Robots Hopped . | . . . . . . . . Cave-ins Triggered . | . . . . . . . . Exploration Rate (%) 50 | 4 78 91 93 9 29 2 95 Regions Visited 7 Branch Regions 3 Pre-discovered Areas 1 | . . . . 1 . . . Known Exits Taken 2 | . . . . . 1 1 . Unknown Exits Taken 5 | 1 1 1 1 1 . . . Scrap Searched 1 | . . 1 . . . . . Spaces Dug 16 | . . . . . 16 . . Terrain Destroyed 242 | . 94 . . . 135 . 13 Melee 16 | . . . . . 16 . . Projectile . | . . . . . . . . AOE 226 | . 94 . . . 119 . 13 Terrain Rammed . | . . . . . . . . Walls Destroyed . | . . . . . . . . Machines Disabled . | . . . . . . . . Actions | -11 -10 -10 -10 -9 -8 -7 -7 --------- Run | Yrd Mat Min Exi Min Mat Fac DSF Total 3651 | 77 916 636 527 32 1213 73 177 Wait 241 | . 6 43 2 7 160 . 23 Move 3095 | 63 815 565 521 23 923 66 119 Hop . | . . . . . . . . Pick Up 20 | 4 7 2 . . 4 . 3 Fast Attach 40 | 2 7 4 . . 17 5 5 Attach 11 | 1 5 1 . . 3 . 1 Detach 17 | 1 6 2 . . 6 1 1 Swap 20 | . 8 1 . . 7 1 3 Drop 21 | . 8 3 . . 7 . 3 Fire 78 | 6 54 . . . 16 . 2 Melee 93 | . . 15 4 2 70 . 2 Ram . | . . . . . . . . Kick . | . . . . . . . . Crush . | . . . . . . . . Escape Stasis 15 | . . . . . . . 15 Rewire . | . . . . . . . . Trap . | . . . . . . . . Miscellaneous . | . . . . . . . . Route ------- -11/Scrapyard -10/Materials (discovered 4 exits: *Mat x3 / *Min) -10/Mines (discovered 3 exits: *Mat x2 / *Exi) -10/Exiles -9/Mines -8/Materials -7/Factory -7/DSF (discovered 1 exit: [*Fac]) History --------- Turn | Location | Event 8 | -11/Scrapyard | Discovered new exit (range 16) 60 | -11/Scrapyard | Entered Materials 186 | -10/Materials | Discovered new exit (range 15) 300 | -10/Materials | Build established: Mutant 433 | -10/Materials | Discovered new exit (range 13) 498 | -10/Materials | Identified exit to Materials 695 | -10/Materials | Entered Mines 695 | -10/Mines | Accompanied by 1 ally 695 | -10/Mines | Learned Materials interactive machine intel 716 | -10/Mines | Met a Derelict who couldn't figure out how to use a Trap Extractor 833 | -10/Mines | Assisted by bots powering up and referring to "LRC-V3" 888 | -10/Mines | Core integrity fell below 50% 896 | -10/Mines | Lost 3 allies 901 | -10/Mines | Core integrity fell below 20% 958 | -10/Mines | Met a Derelict shopkeep closing up shop 984 | -10/Mines | Discovered exit to Materials (range 8) 1034 | -10/Mines | Found the Drone Emporium 1049 | -10/Mines | Discovered exit to Materials (range 9) 1078 | -10/Mines | Deemed a non-threat by the Exiles lab entrance 1079 | -10/Mines | Discovered new exit (range 5) 1086 | -10/Mines | Entered Exiles 1086 | -10/Exiles | Found Exiles lab abandoned 1086 | -10/Exiles | Accompanied by 1 ally 1249 | -10/Exiles | Build established: Gladiator 1352 | -10/Exiles | Discovered new exit (range 12) 1360 | -10/Exiles | Entered Mines 1360 | -9/Mines | Accompanied by 1 ally 1365 | -9/Mines | Escorted by a lone wolf Derelict 1370 | -9/Mines | Discovered new exit (range 16) 1385 | -9/Mines | Learned location of Storage (-9) 1385 | -9/Mines | Entered Materials 1385 | -8/Materials | Accompanied by 2 allies 1385 | -8/Materials | Evolved 4 slots: Utility x4 1386 | -8/Materials | Loaded intel: 19 interactive machine locations 1582 | -8/Materials | Repaired Scythe 1624 | -8/Materials | Repaired Blade Saw? 1670 | -8/Materials | Repaired Axe 1704 | -8/Materials | Repaired Rocket Launcher 1737 | -8/Materials | Repaired Weight Redist. System 1765 | -8/Materials | Discovered new exit (range 4) 2220 | -8/Materials | Build established: Mutant 2326 | -8/Materials | Identified exit to Factory 2577 | -8/Materials | Entered Factory 2577 | -7/Factory | Evolved 2 slots: Utility x2 2679 | -7/Factory | Identified exit to DSF 2679 | -7/Factory | Entered DSF 2759 | -7/DSF | Additional patrols routed to DSF 2806 | -7/DSF | Core integrity fell below 50% 2838 | -7/DSF | Core integrity fell below 20% 2841 | -7/DSF | Discovered new exit (range 18) 2900 | -7/DSF | Destroyed by X-67 Chaingunner with Heavy Machine Gun Last Messages --------------- 02812_ Scythe destroyed. 02812_ Knocked back. 02816_ Acquired Authchip [Device]. 02818_ Acquired Authchip [Armor]. 02825_ Knocked back. 02829_ Dropped Power Maul. 02830_ Acquired Axe. 02837_ Slug penetrates Wall. 02841_ EXIT=FOUND 02854_ C-30 ARC bursts open, deploying its payload. 02854_ S-27 Virus unfolds itself. 02856_ S-27 Virus destroyed. 02868_ Acquired 10 matter. 02872_ Acquired 11 matter. 02874_ The unstable cave ceiling collapses. 02894_ ALERT: Suspicious intruders detected, dispatching Specialist reinforcements to area. 02898_ Authchip [Armor] destroyed. 02898_ Axe destroyed. Map ----- +----------------------------------------------------+ | | | | | | | | | | | | | | | | | | | | | | | | | | | | | | | | | | | ????????????????????????????????????? | | ????????????????????????????????????? | | ????????????????????????????????????? | | ?????????????????????????###????????? | | ????????????????????????#""?????????? | | ????????????????????????#"#?????????? | | ???????########???????###"####??????? | | ???????# !^!!!######## """"#??????? | | ???????# !!!!!#===# # @" "##?#???? | | ???????# ! x #"#???? | | ???????# x """#???? | | ???????### ### #==# ####???? | | ????????## ### #==## #??????? | | ???????? ######### ###??????? | | ????????? ????????#== =##??????? | | ????????? ????????#== = #??????? | | ???????### ###??????### #??????? | | ???????#!! !!#??????#== ##??????? | | ???????#!! !!#??????#== #???????? | | ????????!! !!???????#== #???????? | | ########?# #?########## ###??????? | | !!!#!!!### ###]]]# ## [[#??????? | | !!!% ## ##]]]# ## [[#??????? | | !!#??????? | | % ^ !!#??????? | | % ^ / !!#??????? | | [[[#!!!## ^ ^^##!!!" //"# ==#??????? | | [[[#!!!### ###!!!# /## ==#??????? | | ########?# #?###############??????? | | #???????!! **?????????????????????? | | #??????#!! **#????????????????????? | | #??????#!! **#????????????????????? | | #??????### ###????????????????????? | +----------------------------------------------------+ Best States ------------- Heat Dissipation 34 Energy Generation 10 Energy Capacity 125 Matter Stores 300 Matter Capacity 300 Sight Range 20 Terrain Scan Density 85 Additional Mass Support 6 Utility Shielding 66 Evasion (%) 50 Melee Accuracy 5 Target Analysis 5 Core Analysis 9 Defensive Hacking 10 Authchip Count 3 Item Schematics ----------------- Utility Shielding | -10/Materials | Hacked Blade Saw | -8/Materials | Scanalyzed Scythe | -8/Materials | Scanalyzed Axe | -8/Materials | Scanalyzed Weight Redist. System | -8/Materials | Scanalyzed Rocket Launcher | -8/Materials | Scanalyzed Grenade Launcher | -8/Materials | Scanalyzed Power Maul | -8/Materials | Scanalyzed Robot Schematics ------------------ None Fabricated ------------ Nothing Alien Tech Used ----------------- None Achievements -------------- None Challenges ------------ None Game ------ Seed SurveybotAluminumDissipator Manual? 0 Play Time 00:47:32 Cumulative 97.0 hours Start 2024.11.14 @ 09:02:14 End 2024.11.14 @ 09:47:54 Sessions 1 Manual Loads 0 Difficulty Rogue Special Mode None Game No. 97 Rogue 97 Adventurer 0 Explorer 0 Win Type - Total 2 Types 2/0/0/0/0/0/0/0/0 Lore% 51 Gallery% 51 Achievement% 43 Wizard Run 0 Options --------- Layout 1 ASCII 0 Keyboard 1 Movement Arrows Keybinds 0 Fullscreen 2 Font 24/Smallcaps Map View 50x35 Zoom Use 0% Tactical HUD 1 Map Filters NONE Filters NONE Steam 1 RUN: 90fe8e36-6b62-4b4a-9b02-fa702c707ee0